Cogmind - Beta 10.2 @@@ ROGUE MODE // 2022.01.29 @ 13:00:28 Player: Jezoensis Result: Self-destructed Performance ------------- Evolutions (5) 2500 Regions Visited (18) 3600 Robots Destroyed (202) 1010 Value Destroyed (9149) 9149 Prototype IDs (33) 660 Alien Tech Used (0) 0 Bonus (6633) 6633 TOTAL SCORE: 23552 Bonus ------- Triggered High Security 500 High Alert Combat Kills 1592 Follower Combat Kills 41 Entered Garrisons 1200 Used RIF Installer 3000 Aligned with FarCom 300 Cogmind --------- Core Integrity 725/1000 Matter 100/300 Energy 315/315 System Corruption 0% Temperature Cool (0) Movement Treading (160) Location -5/Extension Parts ------- > --- POWER (1) -------- Neutrino Core > --- PROPULSION (4) --- Heavy Treads Heavy Treads > --- UTILITY (8) ------ Large Storage Unit High-capacity Storage Unit High-capacity Storage Unit Enhanced Optical Array Advanced Terrain Scanner Advanced Terrain Scan Processor Improved Transmission Jammer Relay Coupler [NC] (28) > --- WEAPON (4) ------- Advanced Plasma Cannon KE Penetrator Magnetic Acceleration Cannon Hardcell Cannon > --- INVENTORY (26) --- Heavy Treads Heavy Treads Advanced Cooling System Large Storage Unit Matter Compressor (0) Advanced Terrain Scanner Improved Salvage Targeting Computer Weapon Cycler Improved Weapon Cycler Improved Transmission Jammer Advanced ECM Suite Improved Powered Armor Relay Coupler [Hunter] (20) Improved System Backup Module High-powered Tractor Beam Mass Driver Hardcell Cannon Hardcell Cannon Long-range Missile Launcher Long-range Missile Launcher Improved Remote Datajack Peak State ------------ > --- POWER ------------ Fission Core > --- PROPULSION ------- Heavy Treads Heavy Treads > --- UTILITY ---------- Advanced Cooling System Large Storage Unit High-capacity Storage Unit High-capacity Storage Unit Enhanced Optical Array Advanced Terrain Scan Processor Improved Transmission Jammer Relay Coupler [NC] > --- WEAPON ----------- Advanced Plasma Cannon Mass Driver Hardcell Cannon Improved Remote Datajack > --- INVENTORY -------- Neutrino Core Heavy Treads Heavy Treads Large Storage Unit Matter Compressor Advanced Terrain Scanner Advanced Terrain Scanner Improved Salvage Targeting Computer Weapon Cycler Improved Weapon Cycler Improved Transmission Jammer Advanced ECM Suite Improved Powered Armor Relay Coupler [Hunter] Improved System Backup Module Proton Cannon Long-range Proton Cannon KE Penetrator Magnetic Acceleration Cannon Hardcell Cannon Hardcell Cannon Long-range Missile Launcher [Rating: 89] Favorites ----------- Power Improved Deuterium Engine Engine Improved Deuterium Engine Power Core Fission Core Propulsion Light Treads Treads Light Treads Utility Large Storage Unit Device Advanced Terrain Scanner Storage Large Storage Unit Processor Advanced Terrain Scan Processor Hackware Relay Coupler [NC] Protection Reflective Plating Weapon EM Pulse Cannon Energy Gun Lightning Gun Energy Cannon EM Pulse Cannon Ballistic Gun KE Penetrator Ballistic Cannon Mini Assault Cannon Launcher Advanced EMP Blaster Special Weapon Improved Remote Datajack Slashing Weapon Scythe Build | -11 -10 -10 -10 -9 -8 -8 -8 -8 -7 -7 -6 -6 -6 -6 -5 -5 -5 -5 ------- Run | Scr Mat Min Exi Min Mat Gar Mat Gar Fac Gar Fac Gar Fac Gar Fac Gar Fac Ext Slots Evolved 10 | . . . . . 4 . . . 2 . 2 . . . 2 . . . Power . | . . . . . . . . . . . . . . . . . . . Propulsion 2 | . . . . . 1 . . . 1 . . . . . . . . . Utility 6 | . . . . . 2 . . . 1 . 2 . . . 1 . . . Weapon 2 | . . . . . 1 . . . . . . . . . 1 . . . Parts Attached 364 | 7 14 4 1 8 25 3 28 3 23 26 29 25 26 47 25 32 32 6 Power 13 | 1 1 . . 1 2 . . . 1 2 1 . 1 1 1 . 1 . Engine 10 | 1 1 . . 1 2 . . . 1 2 1 . . 1 . . . . Core 3 | . . . . . . . . . . . . . 1 . 1 . 1 . Reactor . | . . . . . . . . . . . . . . . . . . . Propulsion 38 | 2 . . . 1 2 . 4 . 6 3 2 1 3 8 4 . 2 . Treads 38 | 2 . . . 1 2 . 4 . 6 3 2 1 3 8 4 . 2 . Leg . | . . . . . . . . . . . . . . . . . . . Wheel . | . . . . . . . . . . . . . . . . . . . Hover . | . . . . . . . . . . . . . . . . . . . Flight . | . . . . . . . . . . . . . . . . . . . Utility 158 | 2 5 . . 1 7 3 15 3 7 12 11 14 9 20 13 24 9 3 Device 114 | 1 1 . . . 5 3 13 3 3 11 7 11 6 11 8 22 7 2 Storage 16 | 1 3 . . 1 . . . . 1 1 2 . 1 3 2 . 1 . Processor 8 | . 1 . . . 2 . 1 . 3 . . . . . 1 . . . Hackware 7 | . . . . . . . 1 . . . 1 . 2 . 1 1 1 . Protection 13 | . . . . . . . . . . . 1 3 . 6 1 1 . 1 Artifact . | . . . . . . . . . . . . . . . . . . . Weapon 155 | 2 8 4 1 5 14 . 9 . 9 9 15 10 13 18 7 8 20 3 Energy Gun 21 | 1 . . . . . . 1 . 2 . 5 3 5 4 . . . . Energy Cannon 43 | . 3 1 . 2 7 . 2 . 2 3 2 1 1 3 1 2 12 1 Ballistic Gun 21 | 1 4 1 1 2 1 . . . . . . 1 1 2 4 2 . 1 Ballistic Cannon 25 | . . . . . . . 3 . 2 4 3 2 2 5 . 1 3 . Launcher 20 | . . 2 . . . . . . 1 2 1 3 . 4 . 3 3 1 Special Weapon 15 | . 1 . . 1 3 . . . . . 2 . 4 . 2 . 2 . Impact Weapon . | . . . . . . . . . . . . . . . . . . . Slashing Weapon 10 | . . . . . 3 . 3 . 2 . 2 . . . . . . . Piercing Weapon . | . . . . . . . . . . . . . . . . . . . Special Melee Weapon . | . . . . . . . . . . . . . . . . . . . Unidentified Prototypes 6 | . . . . . 2 . 1 . 2 . . . 1 . . . . . Parts Lost 12 | . . . . . . . . . . . . 3 . 6 . . 3 . Power 1 | . . . . . . . . . . . . . . . . . 1 . Propulsion 4 | . . . . . . . . . . . . 1 . 3 . . . . Utility . | . . . . . . . . . . . . . . . . . . . Weapon 7 | . . . . . . . . . . . . 2 . 3 . . 2 . Highest Loss Streak 2 | . . . . . . . . . . . . 2 . 2 . . 2 . Average Slot Usage (%) 98 | . 99 100 100 100 98 100 99 100 100 99 100 99 100 99 96 94 88 88 Engine 6 | . 14 14 14 14 9 9 9 9 7 6 6 6 3 1 3 . . . Core 1 | . . . . . . . . . . . . . 2 4 1 5 5 5 Treads 24 | . 28 28 28 28 26 27 27 27 30 30 26 26 26 25 20 17 11 11 Device 7 | . 5 . . . 8 9 8 9 7 5 8 10 6 4 11 11 11 10 Storage 19 | . 22 28 28 28 18 18 18 18 15 16 17 20 20 20 17 17 17 17 Processor 10 | . . . . . 9 9 9 9 15 15 13 13 13 13 11 11 11 11 Hackware 2 | . . . . . . . . . . . 5 . 5 6 4 . 5 5 Energy Gun 2 | . 2 . . . . . 1 . . . 8 5 7 5 . . . . Energy Cannon 7 | . 6 1 . 18 14 18 19 18 8 13 2 1 5 1 4 . 5 4 Ballistic Gun 5 | . 18 22 28 9 5 . . . . . . 3 . 1 15 16 . 4 Ballistic Cannon 4 | . . . . . . . 4 9 6 8 3 7 2 8 . 4 13 11 Slashing Weapon 1 | . . . . . 3 9 1 . 5 . 3 . . . . . . . Naked Turns . | . . . . . . . . . . . . . . . . . . . Heaviest Build 139 | 11 37 37 35 45 57 55 59 59 73 90 84 84 80 100 100 106 133 139 Greatest Support 140 | 40 40 40 40 40 60 60 60 60 80 80 80 80 88 98 126 121 140 140 Greatest Overweight (x) 1 | . . . . 1 . . . . . 1 1 1 . 1 1 . . . Average Overweight (x) . | . . . . . . . . . . . . . . . . . . . Largest Inventory Capacity 26 | 6 14 14 14 16 16 16 16 16 18 24 24 22 22 24 24 24 26 26 Average Capacity 19 | 5 11 14 14 14 16 16 16 16 17 19 20 22 22 23 22 24 25 26 Most Carried 25 | 4 14 14 14 15 16 16 16 16 18 22 22 22 22 24 24 24 25 23 Average Carried 18 | 2 10 14 13 14 15 15 15 15 17 18 20 21 21 22 22 23 23 22 Final Capacity 26 | 6 14 14 14 16 16 16 16 16 18 24 22 22 22 24 24 24 26 26 Final Carried 24 | 3 14 14 14 15 16 16 16 15 18 22 22 21 22 24 24 24 22 23 Class Distribution -------------------- 24% | Hauler-Skirmisher 23% | Mutant 18% | Hauler-Mutant 14% | Assassin 9% | Skirmisher 4% | Scavenger-Mutant 3% | Scavenger-Skirmisher Dominant Class ---------------- Mutant | -10/Materials Mutant | -10/Mines Mutant | -10/Exiles Mutant | -9/Mines Assassin | -8/Materials Assassin | -8/Garrison Skirmisher | -8/Materials Skirmisher | -8/Garrison Assassin | -7/Factory Mutant | -7/Garrison Hauler-Skirmisher | -6/Factory Hauler-Skirmisher | -6/Garrison Hauler-Skirmisher | -6/Factory Hauler-Skirmisher | -6/Garrison Scavenger-Skirmisher | -5/Factory Hauler-Skirmisher | -5/Garrison Hauler-Mutant | -5/Factory Hauler-Skirmisher | -5/Extension Resources | -11 -10 -10 -10 -9 -8 -8 -8 -8 -7 -7 -6 -6 -6 -6 -5 -5 -5 -5 ----------- Run | Scr Mat Min Exi Min Mat Gar Mat Gar Fac Gar Fac Gar Fac Gar Fac Gar Fac Ext Matter Collected 7426 | 294 310 . 330 71 220 84 341 . 440 588 677 506 405 889 418 880 836 137 Remotely . | . . . . . . . . . . . . . . . . . . . Salvage Created 8389 | 107 473 31 . 25 451 56 530 . 639 926 484 779 405 1226 502 649 939 167 Parts 387 | 15 36 9 . 6 24 3 23 . 22 38 22 28 10 49 10 32 48 12 Haulers Intercepted 12 | . 2 . . . 3 . 2 . 2 . . . 3 . . . . . Recyclers Shooed 5 | 1 . . . . 1 . . . . . . . . . 1 . 2 . Parts Field Recycled . | . . . . . . . . . . . . . . . . . . . Retrieved Matter . | . . . . . . . . . . . . . . . . . . . Parts Self-Destructed . | . . . . . . . . . . . . . . . . . . . Prevented . | . . . . . . . . . . . . . . . . . . . Kills | -11 -10 -10 -10 -9 -8 -8 -8 -8 -7 -7 -6 -6 -6 -6 -5 -5 -5 -5 ------- Run | Scr Mat Min Exi Min Mat Gar Mat Gar Fac Gar Fac Gar Fac Gar Fac Gar Fac Ext Combat Hostiles Destroyed 153 | . 11 7 . . 5 1 5 . 1 19 7 17 2 22 4 24 23 5 Melee 1 | . . . . . . 1 . . . . . . . . . . . . Guns 27 | . 7 1 . . . . . . . . 1 . . 4 4 9 . 1 Cannons 56 | . 4 . . . 2 . 5 . 1 12 1 9 2 5 . 4 11 . AOE 60 | . . 6 . . 3 . . . . 5 3 7 . 9 . 11 12 4 Classes Destroyed 17 | 1 5 1 . 1 1 . 1 . 1 2 . 1 . 1 1 . 1 . Worker 10 | . 1 . . . 1 . . . . . 1 . . . . . 7 . Builder 2 | . . . . 1 . . . . . . . . . . . . 1 . Tunneler 6 | 5 . 1 . . . . . . . . . . . . . . . . Hauler 12 | . 2 . . . 3 . 2 . 2 . . . 3 . . . . . Recycler 14 | . . . . . . . 2 . 7 . . . . . 1 . 3 1 Mechanic 1 | . . . . . . . . . . . . . . . . . 1 . Watcher 8 | . 2 . . . . . 1 . 1 . 1 1 . . . . 2 . Swarmer 51 | . 6 3 . . . . . . . 4 . 4 . 6 . 16 7 5 Grunt 48 | . 5 . . . 4 1 . . . 4 4 9 . 6 1 7 7 . Brawler 4 | . . . . . . . . . . . . . . . 2 1 1 . Duelist 7 | . . . . . . . . . . 3 . 2 . 1 . . 1 . Sentry 19 | . . . . . 1 . 5 . . 6 2 . . 3 1 . 1 . Specialist 2 | . . . . . . . . . . . . 1 . 1 . . . . Hunter 11 | . . . . . . . . . 1 1 . 1 . 4 . . 4 . Programmer 6 | . . . . . . . . . . 1 1 . 2 . . . 2 . Behemoth 1 | . . . . . . . . . . . . . . 1 . . . . Assembled 4 | . . 4 . . . . . . . . . . . . . . . . Best Kill Streak 13 | 4 4 3 . 1 3 1 2 . 9 6 6 8 1 6 5 6 13 5 Combat Bots Only 8 | . 3 3 . . 2 1 2 . 1 6 5 8 1 6 4 6 7 5 Max Kills in Single Turn 8 | 1 2 2 . 1 3 1 1 . 4 3 2 2 1 2 1 4 8 2 Gunslinging . | . . . . . . . . . . . . . . . . . . . Exploded 4 | . . 2 . . 2 . . . . 3 2 2 . 2 . 4 4 2 Melee 1 | . . . . . . 1 . . . . . . . . . . . . Uniques/NPCs Destroyed . | . . . . . . . . . . . . . . . . . . . Combat | -11 -10 -10 -10 -9 -8 -8 -8 -8 -7 -7 -6 -6 -6 -6 -5 -5 -5 -5 -------- Run | Scr Mat Min Exi Min Mat Gar Mat Gar Fac Gar Fac Gar Fac Gar Fac Gar Fac Ext Damage Taken 7038 | . 140 181 . 45 190 78 182 . 97 757 379 715 75 1825 140 491 1623 120 Core 706 | . 6 36 . . 14 30 61 . . 27 32 59 16 150 . 14 243 18 Absorbed by Shields 241 | . . . . . . . . . . . . . . 169 . 72 . . Reduced by Siege Mode 75 | . . . . . . . . . . . . . . . 5 20 50 . Core Remaining (%) 85 | 100 . . . 83 . . . 80 . 96 . . . 69 . . . . Volleys Fired 402 | 8 32 17 . 7 17 . 17 . 19 51 25 33 29 45 17 25 55 5 Largest 4 | 2 2 2 . 2 3 . 3 . 3 3 3 3 3 3 4 4 4 2 Hottest 278 | 60 100 40 . 112 182 . 189 . 176 174 193 166 198 225 189 164 278 131 Shots Fired 870 | 16 62 28 . 12 34 . 42 . 29 111 50 77 53 100 41 75 133 7 Gun 289 | 16 47 22 . 4 4 . 1 . 8 . 13 36 20 36 27 53 . 2 Cannon 507 | . 13 . . 6 26 . 41 . 21 109 31 33 26 46 8 17 128 2 Launcher 48 | . . 6 . . . . . . . 2 3 8 . 18 . 5 3 3 Special 26 | . 2 . . 2 4 . . . . . 3 . 7 . 6 . 2 . Kinetic 454 | 8 42 22 . 4 4 . 11 . 11 48 20 37 15 45 27 69 89 2 Thermal 104 | 8 7 . . 2 4 . . . . . 10 4 24 11 8 1 23 2 Explosive 24 | . . 6 . . . . . . . . . 2 . 5 . 5 3 3 Electromagnetic 270 | . 13 . . 6 26 . 31 . 18 63 17 34 7 39 . . 16 . Robot Hit Streak 40 | 6 18 4 . 9 14 . 25 . 8 35 40 17 31 19 14 12 12 13 Robot Miss Streak 6 | 1 2 2 . 1 1 . 2 . 1 2 1 4 3 6 1 2 2 1 Penetration Max 1 | . . . . . . . . . . . . . . . . 1 1 . Secondary Targets . | . . . . . . . . . . . . . . . . . . . Shots Hit Robots 574 | 10 42 11 . 9 21 1 28 . 13 80 26 55 36 72 30 48 88 4 Core Hits 330 | 5 23 12 . 4 13 1 16 . 14 34 11 33 9 44 11 33 58 9 Critical Hits 19 | . . . . 1 . . . . . 2 . 2 1 4 1 7 1 . Critical Kills 7 | . . . . . . . . . . . . 2 . 1 1 3 . . Critical Parts Destroyed 10 | . . . . 1 . . . . . 2 . . 1 2 . 4 . . Melee Attacks 35 | . . . . . 9 1 8 . 10 . 7 . . . . . . . Impact . | . . . . . . . . . . . . . . . . . . . Slashing 35 | . . . . . 9 1 8 . 10 . 7 . . . . . . . Piercing . | . . . . . . . . . . . . . . . . . . . Sneak Attacks 1 | . . . . . . . . . 1 . . . . . . . . . Combat Hostiles . | . . . . . . . . . . . . . . . . . . . Follow-up Attacks . | . . . . . . . . . . . . . . . . . . . Damage Inflicted 23892 | 114 656 541 . 167 748 31 763 . 1266 2238 900 2285 794 3388 672 2438 6466 425 Guns 3928 | 114 419 116 . 42 17 . 15 . 101 . 138 528 455 536 452 948 . 47 Cannons 9616 | . 236 . . 111 523 . 736 . 278 1969 449 654 309 912 186 408 2813 32 Explosions 9923 | . . 417 . . 207 . . . 781 269 308 1103 . 1940 . 1082 3470 346 Melee 137 | . . . . . . 31 . . 106 . . . . . . . . . Ramming 288 | . 1 8 . 14 1 . 12 . . . 5 . 30 . 34 . 183 . Kinetic 7695 | 46 375 116 . 42 17 . 232 . 33 883 291 669 197 812 452 1356 2127 47 Thermal 5453 | 68 44 . . . 207 . . . 781 55 153 446 417 326 186 . 2738 32 Explosive 3977 | . . 417 . . . . . . . . . 312 . 844 . 1082 976 346 Electromagnetic 6342 | . 236 . . 111 523 . 519 . 346 1300 451 858 150 1406 . . 442 . Impact . | . . . . . . . . . . . . . . . . . . . Slashing 137 | . . . . . . 31 . . 106 . . . . . . . . . Piercing . | . . . . . . . . . . . . . . . . . . . Highest Corruption 1 | . . . . . . . . . . . 1 1 1 . . . . . Average Corruption 1 | . . . . . . . . . . . 1 1 1 . . . . . Corruption Purged 1 | . . . . . . . . . . . . . 1 . . . . . Effects 6 | . . . . . . . . . . . 3 2 1 . . . . . Message Errors 1 | . . . . . . . . . . . 1 . . . . . . . Data Loss (minor) 2 | . . . . . . . . . . . 1 . 1 . . . . . Targeting Errors 3 | . . . . . . . . . . . 1 2 . . . . . . Overload Shots . | . . . . . . . . . . . . . . . . . . . Overflow Damage 1220 | . . 32 . . 32 . . . 172 17 38 15 1 58 9 72 766 8 Projectiles 322 | . . . . . 32 . . . 29 17 38 . 1 44 . 40 121 . Explosions 874 | . . 32 . . . . . . 143 . . 15 . 14 . 32 630 8 Melee 24 | . . . . . . . . . . . . . . . 9 . 15 . Knockbacks 51 | . . . . . . . 1 . . 11 2 6 3 6 1 3 18 . Impact 2 | . . . . . . . 1 . . . . . . . 1 . . . Kinetic 48 | . . . . . . . . . . 11 2 5 3 6 . 3 18 . Secondary 1 | . . . . . . . . . . . . 1 . . . . . . Self-Inflicted Damage 543 | . . . . . . . . . 75 20 . 85 . . . 23 340 . Shots 13 | . . . . . . . . . 1 1 . 5 . . . 1 5 . Rammed 18 | . 1 . . 3 1 . 1 . . . 1 . 1 . 1 . 9 . Targets Rammed 19 | . 1 1 . 3 1 . 1 . . . 1 . 1 . 1 . 9 . Kicked . | . . . . . . . . . . . . . . . . . . . Crushed 1 | . . 1 . . . . . . . . . . . . . . . . Highest Temperature 369 | . 72 . . 171 231 . 105 . 81 369 362 48 234 201 211 133 255 39 Average Temperature 76 | . 27 . . 62 75 . 42 . 42 137 149 12 67 42 64 55 55 20 Received Heat Transfer 1324 | . 33 . . 18 63 9 54 . . 150 66 147 . 408 54 133 189 . Effects 2 | . . . . . . . . . . 2 . . . . . . . . Shutdowns 1 | . . . . . . . . . . 1 . . . . . . . . Short Circuit 1 | . . . . . . . . . . 1 . . . . . . . . Siege Activations 8 | . . . . . . . . . . . . . . . 1 3 4 . Total Turns 78 | . . . . . . . . . . . . . . . 7 28 43 . Longest Duration 20 | . . . . . . . . . . . . . . . 7 13 20 . Robots Corrupted 12 | . . . . . . . . . . 2 2 1 . 7 . . . . Combat Hostiles 9 | . . . . . . . . . . 2 2 1 . 4 . . . . Parts Fried 40 | . . . . . 2 . 4 . . 6 4 11 2 9 . . 2 . Impact Corruptions 3 | . . . . . . . . . . . . . . . 1 . 2 . Robots Melted . | . . . . . . . . . . . . . . . . . . . Combat Hostiles . | . . . . . . . . . . . . . . . . . . . Parts Melted 1 | . . . . . . . . . . . . . . . . . 1 . Heat Transferred 5174 | 150 100 . . . 250 . . . 600 50 161 411 555 372 125 . 2350 50 Parts Sabotaged . | . . . . . . . . . . . . . . . . . . . Parts Stolen . | . . . . . . . . . . . . . . . . . . . Parts Stripped . | . . . . . . . . . . . . . . . . . . . Power Chain Reactions 12 | . . . . . 2 . . . 1 1 1 4 . 2 . . 1 . Missiles Intercepted . | . . . . . . . . . . . . . . . . . . . Alert | -11 -10 -10 -10 -9 -8 -8 -8 -8 -7 -7 -6 -6 -6 -6 -5 -5 -5 -5 ------- Run | Scr Mat Min Exi Min Mat Gar Mat Gar Fac Gar Fac Gar Fac Gar Fac Gar Fac Ext Peak Influence 1780 | 25 359 171 . 20 297 413 392 215 153 625 418 661 392 686 561 1053 1780 1257 Initial 1100 | . 16 81 . . 7 193 200 215 112 . 327 188 346 103 359 159 552 1100 Average 380 | 11 133 164 . 11 109 315 275 215 95 367 294 492 283 515 348 661 1000 1166 Maximum Alert Level 5 | . 1 . . . 1 2 1 1 . 2 2 2 1 2 2 3 5 4 Low Security (%) 31 | 100 57 100 . 100 75 23 2 . 100 23 21 6 33 9 . 3 . . Level 1 34 | . 42 . . . 24 47 97 100 . 26 67 19 66 7 89 15 . . Level 2 24 | . . . . . . 29 . . . 50 11 74 . 83 10 34 38 . Level 3 5 | . . . . . . . . . . . . . . . . 46 31 . Level 4 2 | . . . . . . . . . . . . . . . . . 8 100 Level 5 . | . . . . . . . . . . . . . . . . . 1 . High Security 2 | . . . . . . . . . . . . . . . . . 20 . Max Security . | . . . . . . . . . . . . . . . . . . . Squads Dispatched 21 | . 2 . . . 2 . . . 1 . 1 . 1 . . . 12 2 Investigation 3 | . . . . . . . . . 1 . . . . . . . . 2 Extermination 3 | . . . . . . . . . . . 1 . 1 . . . 1 . Reinforcement 3 | . 2 . . . . . . . . . . . . . . . 1 . Assault 10 | . . . . . . . . . . . . . . . . . 10 . Garrison 2 | . . . . . 2 . . . . . . . . . . . . . Intercept . | . . . . . . . . . . . . . . . . . . . Construction Impeded . | . . . . . . . . . . . . . . . . . . . Haulers Reinforced . | . . . . . . . . . . . . . . . . . . . Stealth | -11 -10 -10 -10 -9 -8 -8 -8 -8 -7 -7 -6 -6 -6 -6 -5 -5 -5 -5 --------- Run | Scr Mat Min Exi Min Mat Gar Mat Gar Fac Gar Fac Gar Fac Gar Fac Gar Fac Ext Distress Signals 6 | . . . . . . . 1 . . . 2 . 2 . 1 . . . Communications Jammed 45 | . . . . . . . . . . . . . 16 . . . 29 . Distress Signals 45 | . . . . . . . . . . . . . 16 . . . 29 . Times Spotted 211 | . 17 8 . 2 14 2 8 . 5 21 12 18 7 20 9 21 43 4 Peak Tracking Total 8 | . 3 5 . 2 4 2 3 . 2 5 7 4 4 6 4 7 8 4 Tactical Retreats 16 | . 1 . . . 1 1 . . . 2 1 1 1 1 . 4 3 . Traps | -11 -10 -10 -10 -9 -8 -8 -8 -8 -7 -7 -6 -6 -6 -6 -5 -5 -5 -5 ------- Run | Scr Mat Min Exi Min Mat Gar Mat Gar Fac Gar Fac Gar Fac Gar Fac Gar Fac Ext Traps Triggered 13 | . . . . . . . . . 1 2 1 1 . 6 2 . . . Indirectly 5 | . . . . . . . . . . . 1 . . 4 . . . . Trap Hack Attempts . | . . . . . . . . . . . . . . . . . . . Triggered . | . . . . . . . . . . . . . . . . . . . Disarmed . | . . . . . . . . . . . . . . . . . . . Reprogrammed . | . . . . . . . . . . . . . . . . . . . Reused . | . . . . . . . . . . . . . . . . . . . Traps Extracted . | . . . . . . . . . . . . . . . . . . . Installed . | . . . . . . . . . . . . . . . . . . . Triggered 2 | . . . . . . . . . . . 1 . . . . . 1 . Machines | -11 -10 -10 -10 -9 -8 -8 -8 -8 -7 -7 -6 -6 -6 -6 -5 -5 -5 -5 ---------- Run | Scr Mat Min Exi Min Mat Gar Mat Gar Fac Gar Fac Gar Fac Gar Fac Gar Fac Ext Machines Disabled 50 | . . . . . 4 . . . 2 4 . 2 . 2 5 4 27 . Max in Single Turn 8 | . . . . . 2 . . . 2 1 . 1 . 1 3 1 8 . Garrison Access 3 | . . . . . . . . . 1 . 1 . 1 . . . . . Garrison Relay 9 | . . . . . . . . . . 3 . 2 . 1 . 3 . . Machines Sabotaged . | . . . . . . . . . . . . . . . . . . . Garrisons Compromised . | . . . . . . . . . . . . . . . . . . . Overloaded Fab Kills . | . . . . . . . . . . . . . . . . . . . Fab Network Shutdowns . | . . . . . . . . . . . . . . . . . . . Hacking | -11 -10 -10 -10 -9 -8 -8 -8 -8 -7 -7 -6 -6 -6 -6 -5 -5 -5 -5 --------- Run | Scr Mat Min Exi Min Mat Gar Mat Gar Fac Gar Fac Gar Fac Gar Fac Gar Fac Ext Machines Accessed 48 | . 7 . 1 . 9 . 5 . 4 . 9 . 4 . 2 . 4 3 Terminals 29 | . 6 . . . 7 . 4 . 1 . 4 . 1 . 1 . 2 3 Fabricators 4 | . . . . . . . . . . . 2 . 1 . . . 1 . Repair Stations . | . . . . . . . . . . . . . . . . . . . Recycling Units 5 | . 1 . . . 1 . . . 1 . 1 . . . . . 1 . Scanalyzers . | . . . . . . . . . . . . . . . . . . . Garrison Access 9 | . . . . . 1 . 1 . 2 . 2 . 2 . 1 . . . Total Hacks 127 | . 30 . 1 . 22 . 21 . 5 . 18 . 9 . 3 . 7 11 Successful 70 | . 16 . 1 . 12 . 12 . 4 . 9 . 5 . 2 . 5 4 Failed 57 | . 14 . . . 10 . 9 . 1 . 9 . 4 . 1 . 2 7 Catastrophic 7 | . . . . . 1 . 1 . . . 2 . . . 1 . 1 1 Database Lockouts . | . . . . . . . . . . . . . . . . . . . Manual 92 | . 28 . 1 . 18 . 15 . 2 . 10 . 5 . 2 . 4 7 Terminals 102 | . 29 . . . 20 . 20 . 2 . 9 . 5 . 2 . 4 11 Fabricators 9 | . . . . . . . . . . . 5 . 2 . . . 2 . Repair Stations . | . . . . . . . . . . . . . . . . . . . Recycling Units 6 | . 1 . . . 1 . . . 1 . 2 . . . . . 1 . Scanalyzers . | . . . . . . . . . . . . . . . . . . . Garrison Access 9 | . . . . . 1 . 1 . 2 . 2 . 2 . 1 . . . Terminal Hacks 26 | . 7 . 1 . 7 . 5 . . . 1 . 1 . 1 . 1 2 Part Schematic 3 | . . . . . 3 . . . . . . . . . . . . . Robot Analysis 8 | . 5 . . . 1 . 2 . . . . . . . . . . . Prototype ID Bank 1 | . . . . . . . 1 . . . . . . . . . . . Terminal Index 5 | . 1 . . . 1 . 1 . . . 1 . . . . . 1 . Unreport Threat 4 | . . . . . 1 . . . . . . . 1 . 1 . . 1 Locate Traps 2 | . 1 . . . . . . . . . . . . . . . . 1 Maintenance Status 1 | . . . . . 1 . . . . . . . . . . . . . Zone Layout 1 | . . . . . . . 1 . . . . . . . . . . . EX-Prototype ID Bank 1 | . . . 1 . . . . . . . . . . . . . . . Fabricator Hacks 4 | . . . . . . . . . . . 2 . . . . . 2 . Load Schematic 2 | . . . . . . . . . . . 1 . . . . . 1 . Build 2 | . . . . . . . . . . . 1 . . . . . 1 . Repair Station Hacks . | . . . . . . . . . . . . . . . . . . . Recycling Unit Hacks . | . . . . . . . . . . . . . . . . . . . Scanalyzer . | . . . . . . . . . . . . . . . . . . . Garrison Access Hacks 9 | . . . . . 1 . 1 . 2 . 2 . 2 . 1 . . . Unlock Access 6 | . . . . . 1 . 1 . 1 . 1 . 1 . 1 . . . Seal Access 3 | . . . . . . . . . 1 . 1 . 1 . . . . . Unauthorized Hacks 31 | . 9 . . . 4 . 6 . 2 . 4 . 2 . . . 2 2 Terminals 26 | . 8 . . . 3 . 6 . 1 . 3 . 1 . . . 2 2 Track 6 | . 4 . . . . . 2 . . . . . . . . . . . Assimilate 1 | . 1 . . . . . . . . . . . . . . . . . Botnet 14 | . 2 . . . 2 . 3 . 1 . 2 . 1 . . . 1 2 Operators 5 | . 1 . . . 1 . 1 . . . 1 . . . . . 1 . Fabricators 1 | . . . . . . . . . . . . . 1 . . . . . Haulers 1 | . . . . . . . . . . . . . 1 . . . . . Repair Stations . | . . . . . . . . . . . . . . . . . . . Recycling Units 4 | . 1 . . . 1 . . . 1 . 1 . . . . . . . Recyclers 4 | . 1 . . . 1 . . . 1 . 1 . . . . . . . Scanalyzers . | . . . . . . . . . . . . . . . . . . . Garrison Access . | . . . . . . . . . . . . . . . . . . . Data Cores Recovered . | . . . . . . . . . . . . . . . . . . . Used . | . . . . . . . . . . . . . . . . . . . Hacking Detections 39 | . 6 . . . 8 . 4 . 2 . 7 . 3 . 2 . 4 3 Full Trace Events 4 | . 1 . . . 1 . . . . . . . . . . . . 2 Feedback Events . | . . . . . . . . . . . . . . . . . . . Feedback Blocked . | . . . . . . . . . . . . . . . . . . . Robot Schematics Acquired . | . . . . . . . . . . . . . . . . . . . Robots Built . | . . . . . . . . . . . . . . . . . . . Matter . | . . . . . . . . . . . . . . . . . . . Time . | . . . . . . . . . . . . . . . . . . . Total Robot Build Rating . | . . . . . . . . . . . . . . . . . . . Part Schematics Acquired 3 | . . . . . 3 . . . . . . . . . . . . . Parts Built 2 | . . . . . . . . . . . 1 . . . . . 1 . Matter 204 | . . . . . . . . . . . 102 . . . . . 102 . Time 76 | . . . . . . . . . . . 51 . . . . . 25 . Total Part Build Rating 2 | . . . . . . . . . . . 1 . . . . . 1 . Parts Repaired . | . . . . . . . . . . . . . . . . . . . Time . | . . . . . . . . . . . . . . . . . . . Parts Recycled . | . . . . . . . . . . . . . . . . . . . Recycled Matter . | . . . . . . . . . . . . . . . . . . . Retrieved Matter . | . . . . . . . . . . . . . . . . . . . Retrieved Components . | . . . . . . . . . . . . . . . . . . . Parts Scanalyzed . | . . . . . . . . . . . . . . . . . . . Part Schematics Acquired . | . . . . . . . . . . . . . . . . . . . Parts Damaged . | . . . . . . . . . . . . . . . . . . . Bothacking | -11 -10 -10 -10 -9 -8 -8 -8 -8 -7 -7 -6 -6 -6 -6 -5 -5 -5 -5 ------------ Run | Scr Mat Min Exi Min Mat Gar Mat Gar Fac Gar Fac Gar Fac Gar Fac Gar Fac Ext Used RIF Installer 6 | . . . . . . 1 . 1 . 1 . 1 . 1 . 1 . . Coupler Efficiency 1 | . . . . . . . . . . . . . . . . 1 . . Hotswap 1 | . . . . . . . . . . . . 1 . . . . . . Zone Cloak 2 | . . . . . . . . 1 . 1 . . . . . . . . Structural Interface 1 | . . . . . . . . . . . . . . 1 . . . . Robots Hacked 14 | . . . . . . . . . . . 2 . 5 . 5 . 2 . Non-combat 14 | . . . . . . . . . . . 2 . 5 . 5 . 2 . Combat . | . . . . . . . . . . . . . . . . . . . Robot Hacks Applied 14 | . . . . . . . . . . . 2 . 5 . 5 . 2 . drop_inventory 7 | . . . . . . . . . . . 1 . 3 . 2 . 1 . map_route 7 | . . . . . . . . . . . 1 . 2 . 3 . 1 . Relay Couplers Released 31 | . . . . . . . . . . 11 . 7 . 4 . 9 . . Machine Destruction 31 | . . . . . . . . . . 11 . 7 . 4 . 9 . . Attached 6 | . . . . . . . . . . . 1 . 2 . 1 1 1 . Robots Rewired . | . . . . . . . . . . . . . . . . . . . Allies Hacked . | . . . . . . . . . . . . . . . . . . . Hacks Repelled . | . . . . . . . . . . . . . . . . . . . Allies | -11 -10 -10 -10 -9 -8 -8 -8 -8 -7 -7 -6 -6 -6 -6 -5 -5 -5 -5 -------- Run | Scr Mat Min Exi Min Mat Gar Mat Gar Fac Gar Fac Gar Fac Gar Fac Gar Fac Ext Total Allies 1 | . 1 . . . . . . . . . . . . . . . . . Largest Group 1 | . 1 . . . . . . . . . . . . . . . . . Highest-Rated Group 10 | . 10 . . . . . . . . . . . . . . . . . Highest-Rated Ally 10 | . 10 . . . . . . . . . . . . . . . . . Total Orders 2 | . 2 . . . . . . . . . . . . . . . . . STAY 1 | . 1 . . . . . . . . . . . . . . . . . FOLLOW 1 | . 1 . . . . . . . . . . . . . . . . . Ally Attacks 14 | . . . . . . 14 . . . . . . . . . . . . Total Damage 772 | . . . . . . 772 . . . . . . . . . . . . Kills 8 | . . . . . . 8 . . . . . . . . . . . . Allies Corrupted . | . . . . . . . . . . . . . . . . . . . Allies Melted . | . . . . . . . . . . . . . . . . . . . Turrets Deployed 2 | . . . . . . 1 . 1 . . . . . . . . . . Intel | -11 -10 -10 -10 -9 -8 -8 -8 -8 -7 -7 -6 -6 -6 -6 -5 -5 -5 -5 ------- Run | Scr Mat Min Exi Min Mat Gar Mat Gar Fac Gar Fac Gar Fac Gar Fac Gar Fac Ext Robot Analysis Total 8 | . 5 . . . 1 . 2 . . . . . . . . . . . Derelict Logs Recovered 1 | . . . . 1 . . . . . . . . . . . . . . Drone Launches . | . . . . . . . . . . . . . . . . . . . Drone Recoveries . | . . . . . . . . . . . . . . . . . . . Exploration | -11 -10 -10 -10 -9 -8 -8 -8 -8 -7 -7 -6 -6 -6 -6 -5 -5 -5 -5 ------------- Run | Scr Mat Min Exi Min Mat Gar Mat Gar Fac Gar Fac Gar Fac Gar Fac Gar Fac Ext Turns Passed 10866 | 94 966 142 427 268 629 247 638 128 854 890 891 560 789 990 626 547 1021 159 Spaces Moved 5446 | 46 516 56 265 134 307 151 311 77 446 406 450 250 401 470 336 266 473 85 Core 17 | 17 . . . . . . . . . . . . . . . . . . Treads 5429 | 29 516 56 265 134 307 151 311 77 446 406 450 250 401 470 336 266 473 85 Legs . | . . . . . . . . . . . . . . . . . . . Wheels . | . . . . . . . . . . . . . . . . . . . Hover . | . . . . . . . . . . . . . . . . . . . Flight . | . . . . . . . . . . . . . . . . . . . Fastest Speed 50 | 50 160 160 160 160 160 160 160 163 162 165 165 165 162 160 160 160 160 160 Average Speed 162 | 119 160 160 160 160 160 160 161 163 163 169 165 167 164 161 160 160 160 160 Slowest Speed 185 | 160 160 160 160 180 160 160 163 163 165 185 185 185 165 180 180 160 160 160 Overloaded Moves . | . . . . . . . . . . . . . . . . . . . Propulsion Burnouts . | . . . . . . . . . . . . . . . . . . . Robots Hopped . | . . . . . . . . . . . . . . . . . . . Cave-ins Triggered . | . . . . . . . . . . . . . . . . . . . Exploration Rate (%) 38 | 4 78 22 68 23 40 43 35 30 18 63 18 59 20 80 18 80 15 19 Regions Visited 18 Branch Regions 4 Pre-discovered Areas . | . . . . . . . . . . . . . . . . . . . Known Exits Taken 6 | . . . . . 1 . 1 . 1 . 1 . 1 . 1 . . . Unknown Exits Taken 6 | 1 1 1 1 1 . . . . . . . . . . . . 1 . Scrap Searched 1 | . . . . 1 . . . . . . . . . . . . . . Spaces Dug 75 | . 1 . . 1 13 . 8 . 14 . 13 . 6 . 2 . 17 . Terrain Destroyed 591 | . 1 50 . 1 21 . 8 . 27 6 21 33 11 52 2 93 204 61 Melee 33 | . . . . . 9 . 8 . 9 . 7 . . . . . . . Projectile 72 | . 1 . . 1 4 . . . 5 1 10 1 11 2 2 2 31 1 AOE 486 | . . 50 . . 8 . . . 13 5 4 32 . 50 . 91 173 60 Terrain Rammed . | . . . . . . . . . . . . . . . . . . . Walls Destroyed . | . . . . . . . . . . . . . . . . . . . Machines Disabled . | . . . . . . . . . . . . . . . . . . . Actions | -11 -10 -10 -10 -9 -8 -8 -8 -8 -7 -7 -6 -6 -6 -6 -5 -5 -5 -5 --------- Run | Scr Mat Min Exi Min Mat Gar Mat Gar Fac Gar Fac Gar Fac Gar Fac Gar Fac Ext Total 6661 | 67 593 78 269 169 395 155 397 79 528 515 547 321 484 606 401 337 623 97 Wait 157 | . 5 1 . 11 7 . 11 . 7 18 13 10 10 21 . 6 37 . Move 5423 | 45 515 55 264 134 306 149 310 75 445 404 449 248 400 468 335 264 472 85 Hop . | . . . . . . . . . . . . . . . . . . . Pick Up 120 | 6 16 . 2 3 11 1 8 . 12 6 9 3 7 13 10 4 8 1 Fast Attach 43 | 5 2 . . . 7 . 2 . 4 . 4 1 3 5 6 2 2 . Attach 45 | 2 4 . 1 . 4 . 2 . 4 1 4 3 3 7 5 . 5 . Detach 15 | . 2 . . . 3 . 1 . 2 . 3 . 2 . 1 1 . . Swap 276 | . 8 4 . 8 14 3 24 3 15 25 21 21 20 35 14 30 25 6 Drop 123 | 1 8 . 2 4 16 1 13 1 10 6 11 2 9 12 12 5 10 . Fire 402 | 8 32 17 . 7 17 . 17 . 19 51 25 33 29 45 17 25 55 5 Melee 35 | . . . . . 9 1 8 . 10 . 7 . . . . . . . Ram . | . . . . . . . . . . . . . . . . . . . Kick . | . . . . . . . . . . . . . . . . . . . Crush 18 | . 1 1 . 2 1 . 1 . . . 1 . 1 . 1 . 9 . Escape Stasis 4 | . . . . . . . . . . 4 . . . . . . . . Rewire . | . . . . . . . . . . . . . . . . . . . Trap . | . . . . . . . . . . . . . . . . . . . Miscellaneous . | . . . . . . . . . . . . . . . . . . . Route ------- -11/Scrapyard -10/Materials (discovered 5 exits: [*Mat x3] / [*Min x2]) -10/Mines -10/Exiles -9/Mines -8/Materials (discovered 2 exits: Fac / Gar) -8/Garrison (discovered 2 exits: *Mat x2) -8/Materials (discovered 2 exits: Fac / Gar) -8/Garrison -7/Factory (discovered 2 exits: *Fac / Gar) -7/Garrison (discovered 2 exits: *Fac x2) -6/Factory (discovered 3 exits: *Fac x2 / Gar) -6/Garrison (discovered 2 exits: *Fac x2) -6/Factory (discovered 2 exits: [Low] / Gar) -6/Garrison (discovered 3 exits: *Fac x3) -5/Factory (discovered 2 exits: Ext / Gar) -5/Garrison (discovered 3 exits: *Fac x3) -5/Factory -5/Extension History --------- Turn | Location | Event 8 | -11/Scrapyard | Discovered new exit (range 15) 95 | -11/Scrapyard | Entered Materials 310 | -10/Materials | Build established: Mutant 344 | -10/Materials | Discovered new exit (range 16) 418 | -10/Materials | Discovered new exit (range 16) 579 | -10/Materials | Discovered new exit (range 8) 633 | -10/Materials | Discovered new exit (range 14) 738 | -10/Materials | Discovered new exit (range 16) 1061 | -10/Materials | Entered Mines 1071 | -10/Mines | Assembled infested the area 1076 | -10/Mines | Assisted by a Guerilla fighting off Assembled 1197 | -10/Mines | Deemed a non-threat by the Exiles lab entrance 1197 | -10/Mines | Discovered new exit (range 5) 1203 | -10/Mines | Entered Exiles 1242 | -10/Exiles | Met 8R-AWN 1271 | -10/Exiles | Met EX-HEX 1314 | -10/Exiles | Met EX-BIN 1331 | -10/Exiles | Aligned with FarCom system 1333 | -10/Exiles | Given EX-Vault access code 1370 | -10/Exiles | Opened EX-Vault 1381 | -10/Exiles | Found Deploy-a-Sentry 1384 | -10/Exiles | Found Deploy-a-Sentry 1419 | -10/Exiles | Warned to stay clear of 0b10 Research branches 1502 | -10/Exiles | Met EX-DEC 1617 | -10/Exiles | Discovered new exit (range 10) 1630 | -10/Exiles | Left Exiles lab with Deploy-a-Sentry 1630 | -10/Exiles | Entered Mines 1634 | -9/Mines | Learned location of 1 exit from Lower Caves 1641 | -9/Mines | Met a Derelict bent on vengeance 1642 | -9/Mines | Discovered new exit (range 7) 1694 | -9/Mines | Joined a pair of Derelicts in attacking an 0b10 outpost 1898 | -9/Mines | Entered Materials 1898 | -8/Materials | Evolved 4 slots: Propulsion x1, Utility x2, Weapon x1 2183 | -8/Materials | Discovered new exit (range 20) 2360 | -8/Materials | Garrison activated, responded to threat 2525 | -8/Materials | Identified exit to Garrison 2527 | -8/Materials | Entered Garrison 2548 | -8/Garrison | Build established: Assassin 2578 | -8/Garrison | Triggered checkpoint 2583 | -8/Garrison | DAS Turret deployed 2642 | -8/Garrison | Discovered new exit (range 11) 2676 | -8/Garrison | Triggered checkpoint 2694 | -8/Garrison | Triggered checkpoint 2747 | -8/Garrison | Discovered new exit (range 8) 2766 | -8/Garrison | Installed Relay Interface Framework 2774 | -8/Garrison | Entered Materials 3100 | -8/Materials | Discovered new exit (range 13) 3410 | -8/Materials | Identified exit to Garrison 3412 | -8/Materials | Entered Garrison 3451 | -8/Garrison | DAS Turret deployed 3473 | -8/Garrison | Build established: Skirmisher 3507 | -8/Garrison | Discovered new exit (range 10) 3530 | -8/Garrison | Expanded RIF knowledge: Zone Cloak 3540 | -8/Garrison | Entered Factory 3540 | -7/Factory | Evolved 2 slots: Propulsion x1, Utility x1 3594 | -7/Factory | Discovered new exit (range 18) 3771 | -7/Factory | Identified exit to Factory 3887 | -7/Factory | Build established: Assassin 4393 | -7/Factory | Identified exit to Garrison 4394 | -7/Factory | Entered Garrison 4458 | -7/Garrison | Triggered checkpoint 4474 | -7/Garrison | Garrison Relay disabled 4654 | -7/Garrison | Triggered checkpoint 4654 | -7/Garrison | Triggered checkpoint 4776 | -7/Garrison | Discovered exit to Factory (range 12) 4824 | -7/Garrison | Triggered checkpoint 4873 | -7/Garrison | Garrison Relay disabled 4952 | -7/Garrison | Triggered checkpoint 4994 | -7/Garrison | Discovered exit to Factory (range 19) 5028 | -7/Garrison | Triggered checkpoint 5054 | -7/Garrison | Garrison Relay disabled 5275 | -7/Garrison | Expanded RIF knowledge: Zone Cloak 5284 | -7/Garrison | Entered Factory 5284 | -6/Factory | Evolved 2 slots: Utility x2 5562 | -6/Factory | Fabricated Lrg. Storage Unit (x1) 5704 | -6/Factory | Discovered new exit (range 20) 5876 | -6/Factory | Discovered new exit (range 38) 5983 | -6/Factory | Spotted B-75 Beast 6173 | -6/Factory | Identified exit to Garrison 6174 | -6/Factory | Build established: Hauler-Skirmisher 6175 | -6/Factory | Entered Garrison 6207 | -6/Garrison | Triggered checkpoint 6253 | -6/Garrison | Garrison Relay disabled 6290 | -6/Garrison | Triggered checkpoint 6359 | -6/Garrison | Destroyed 8 combat bots 6370 | -6/Garrison | Triggered checkpoint 6414 | -6/Garrison | Discovered new exit (range 8) 6453 | -6/Garrison | Triggered checkpoint 6554 | -6/Garrison | Discovered new exit (range 13) 6587 | -6/Garrison | Expanded RIF knowledge: Hotswap 6626 | -6/Garrison | Triggered checkpoint 6673 | -6/Garrison | Garrison Relay disabled 6735 | -6/Garrison | Entered Factory 6784 | -6/Factory | Spotted B-75 Beast 7271 | -6/Factory | Discovered new exit (range 52) 7523 | -6/Factory | Identified exit to Garrison 7524 | -6/Factory | Entered Garrison 7533 | -6/Garrison | Expanded RIF knowledge: Structural Interface 7619 | -6/Garrison | Triggered checkpoint 7619 | -6/Garrison | Spotted B-75 Beast 7619 | -6/Garrison | Triggered checkpoint 7645 | -6/Garrison | Destroyed B-75 Beast 7816 | -6/Garrison | Discovered new exit (range 11) 7854 | -6/Garrison | Triggered checkpoint 7857 | -6/Garrison | Garrison Relay disabled 8085 | -6/Garrison | Spotted B-75 Beast 8325 | -6/Garrison | Discovered new exit (range 14) 8376 | -6/Garrison | Triggered checkpoint 8487 | -6/Garrison | Discovered new exit (range 17) 8514 | -6/Garrison | Entered Factory 8514 | -5/Factory | Evolved 2 slots: Utility x1, Weapon x1 8647 | -5/Factory | Build established: Scavenger-Skirmisher 8823 | -5/Factory | Discovered new exit (range 16) 9139 | -5/Factory | Identified exit to Garrison 9140 | -5/Factory | Entered Garrison 9188 | -5/Garrison | Garrison Relay disabled 9240 | -5/Garrison | Triggered checkpoint 9303 | -5/Garrison | Triggered checkpoint 9349 | -5/Garrison | Discovered new exit (range 16) 9392 | -5/Garrison | Garrison Relay disabled 9431 | -5/Garrison | Triggered checkpoint 9492 | -5/Garrison | Discovered new exit (range 20) 9512 | -5/Garrison | Garrison Relay disabled 9598 | -5/Garrison | Triggered checkpoint 9659 | -5/Garrison | Discovered new exit (range 8) 9679 | -5/Garrison | Expanded RIF knowledge: Coupler Efficiency 9687 | -5/Garrison | Entered Factory 9813 | -5/Factory | Found Imp. Powered Armor 9935 | -5/Factory | Fabricated Hcp. Storage Unit (x1) 10117 | -5/Factory | Build established: Hauler-Mutant 10287 | -5/Factory | First assault squad dispatched 10495 | -5/Factory | High security lockdown imminent 10521 | -5/Factory | Destroyed 7 combat bots 10575 | -5/Factory | High security lockdown engaged 10678 | -5/Factory | Discovered new exit (range 20) 10708 | -5/Factory | Entered Extension 10808 | -5/Extension | Build established: Hauler-Skirmisher 10867 | -5/Extension | Self-destructed Last Messages --------------- 10812_ The unstable cave ceiling collapses. 10814_ Connecting with Terminal... 10814_ ALERT: Suspicious activity at Terminal E012. Dispatching Investigation squad. 10821_ The unstable cave ceiling collapses. 10845_ Connecting with Terminal... >>Trojan(Botnet) Trojan loaded successfully. Testing... Terminal linked with 1 system. Awaiting botnet instructions. >>Traps(Locate) Found 10 traps in 2 arrays: 4x Stasis Trap 6x Tiamat Bomb Trap Map updated. >>Alert(Purge) Purged threat record, alert level lowered. 10845_ ALERT: Suspicious activity at Terminal E013. Dispatching Investigation squad. Map ----- +----------------------------------------------------+ | | | | | | | | | | | | | | | | | | | | | | | | | | | | | | | | | | | | | | | ###########?#####??##??###??##???????#???????????? | | ##################?######?#???###??##???#?#??????? | | ####?#?##?#?#??#######???????????????? | | ######?##### = #?#?#???????????? | | ######## # ] ##????????#?????? | | + =+? ??????? ?????? | | ^ ^ ###### @# = #??#??? ????????? | | ^ ^^ ^ ] "##?###+## ##?#?? ?? ??????? | | ^""""""" ^ ]! T## # ###?#???????????? | | """"""" ^]! "## == ##########???o#?#??????? | | ! ] ### = = #????##?????#????##????? | | #?# + ?? ? ???? ##???????? | | ### ###?#?# ? ????#?????? | | ### * #??#?#? ? ????????????? | | "### ##########??####????????#?#?????? | | T"###########+##+####?##?####??##?##?????#???????? | | ""####### ??##??###??#??## ???? ????????? | | ######### ] ?##??#?##???##? ?"???? ????????? | | ?######## ! ##?#?#??##?##?? ??"T???????????? | | ##?###### #?###?###?#?#? ? ?????????????? | | #######?#############?#?####??#?#T#??"#??????????? | | #?##?#######??#??#??####??#??##?????"????????????? | | ###?######??##?##?##???###?##?###????????????????? | | ##########??#?####?####?####??#??????????????????? | | ########??##??#??####?#?##???#???????????????????? | | ###########?######??###???###????????????????????? | | ############?#?#???###?##???#????????????????????? | | #########?###??#???##?#??????????????????????????? | | #############???????#????????????????????????????? | | #####?#####?#?#?#??#?????????????????????????????? | | ###?##?###???#??##?????#?#???????????????????????? | +----------------------------------------------------+ Best States ------------- Heat Dissipation 71 Energy Generation 19 Energy Capacity 315 Matter Stores 300 Matter Capacity 300 Sight Range 22 Terrain Scan Range 20 Terrain Scan Density 210 ECM Strength 3 Jamming Range 12 Armor Coverage 400 Resistance: TH 10 Weapon Cycling 20 Evasion (%) 50 Recoil Reduction 4 Energy Filtering 30 Relay Coupler Types 41 Relay Coupler Value 1 Item Schematics ----------------- Adv. Terrain Scanner | -8/Materials | Hacked Lrg. Storage Unit | -8/Materials | Hacked Hcp. Storage Unit | -8/Materials | Hacked Robot Schematics ------------------ None Fabricated ------------ Lrg. Storage Unit | x1 | -6/Factory Hcp. Storage Unit | x1 | -5/Factory Alien Tech Used ----------------- None Achievements -------------- None Challenges ------------ None Game ------ Seed BiocellMetafieldBox Manual? 0 Play Time 02:37:47 Cumulative 506.2 hours Start 2022.01.28 @ 18:52:25 End 2022.01.29 @ 13:00:28 Sessions 9 Manual Loads 0 Difficulty Rogue Special Mode None Game No. 244 Rogue 117 Adventurer 125 Explorer 2 Win Type - Total 44 Types 37/3/2/0/1/0/0/0/1 Lore% 65 Gallery% 85 Achievement% 66 Wizard Run 0 Options --------- ASCII 0 Keyboard 1 Movement Numpad Keybinds 0 Fullscreen 1 Font 36/TerminusFine Map View 76x50 Tactical HUD 1 Map Filters NONE Filters NONE Steam 1 RUN: 4f985f19-da15-453d-a7bc-ed57260a9dee